[Event "90th GER-ch 2019"]
[Site "Magdeburg"]
[Date "2019.05.30"]
[Round "6.7"]
[White "Becker, Marcel"]
[Black "Paul, Johannes"]
[Result "1/2-1/2"]
[ECO "E90"]
[WhiteElo "2308"]
[BlackElo "2364"]
[Annotator "ChessBase"]
[PlyCount "105"]
[EventDate "2019.05.26"]
[EventType "tourn"]
[EventCountry "GER"]
[SourceTitle "playchess.com"]
[Source "ChessBase"]
[SourceQuality "1"]
[TimeControl "40/5400+30:1800+30"]

1. d4 {[%emt 0:00:00]} Nf6 {[%emt 0:00:00]} 2. c4 {[%emt 0:00:00]} g6 {[%emt 0:00:00]} 3. Nc3 {[%emt 0:00:07]} Bg7 {[%emt 0:00:00]} 4. e4 {[%emt 0:00:16]} d6 {[%emt 0:00:00]} 5. Nf3 {[%emt 0:00:30]} O-O {[%emt 0:00:00]} 6. h3 {[%emt 0:00:10]} e5 {[%emt 0:00:00]} 7. d5 {[%emt 0:00:09]} Nh5 {[%emt 0:03:42]} 8. g3 {[%emt 0:00:59]} Na6 {[%emt 0:01:02]} 9. Be2 {[%emt 0:10:15]} Nc5 {[%emt 0:14:41]} 10. Bg5 {[%emt 0:10:53]} f6 {[%emt 0:15:16]} 11. Be3 {[%emt 0:04:13]} f5 {[%emt 0:00:06]} 12. exf5 {[%emt 0:08:42]} gxf5 {[%emt 0:00:15]} 13. Nd2 {[%emt 0:02:40]} Nf6 {[%emt 0:01:18]} 14. Qc2 {[%emt 0:01:08]} Na6 {[%emt 0:09:31]} 15. a3 {[%emt 0:00:40]} c6 {[%emt 0:01:42]} 16. O-O-O {[%emt 0:03:49]} Nc7 {[%emt 0:01:52]} 17. Bg5 {[%emt 0:14:33]} cxd5 {[%emt 0:03:38]} 18. cxd5 {[%emt 0:00:18]} Bd7 {[%emt 0:00:11]} 19. Nc4 {[%emt 0:03:04]} Nb5 {[%emt 0:04:38]} 20. Nxb5 {[%emt 0:03:45]} Bxb5 {[%emt 0:00:19]} 21. Kb1 {[%emt 0:01:29]} Rc8 {[%emt 0:03:01]} 22. Qb3 {[%emt 0:02:07]} Ba6 {[%emt 0:07:18]} 23. Rhe1 {[%emt 0:03:22]} Qd7 {[%emt 0:00:39]} 24. Bxf6 {[%emt 0:04:28]} Bxf6 {[%emt 0:00:58]} 25. Ne3 {[%emt 0:00:22]} e4 {[%emt 0:13:37]} 26. g4 {[%emt 0:00:42]} f4 {[%emt 0:00:28]} 27. Nf5 {[%emt 0:00:23]} Rc5 {[%emt 0:00:59]} 28. Bxa6 {[%emt 0:01:42]} bxa6 {[%emt 0:01:26]} 29. Rxe4 {[%emt 0:00:12]} a5 {[%emt 0:06:58]} 30. Nd4 {[%emt 0:01:56]} a4 {[%emt 0:01:27]} 31. Qf3 {[%emt 0:03:49]} Rb8 {[%emt 0:02:45]} 32. Re2 {[%emt 0:02:29]} Be5 {[%emt 0:03:31]} 33. Nc6 {[%emt 0:01:58]} Rxb2+ {[%emt 0:01:58]} 34. Rxb2 {[%emt 0:00:13]} Bxb2 {[%emt 0:00:02]} 35. Kxb2 {[%emt 0:01:43]} Qb7+ {[%emt 0:00:12]} 36. Nb4 {[%emt 0:00:47]} a5 {[%emt 0:00:47]} 37. Rd4 {[%emt 0:01:49]} axb4 {[%emt 0:01:00]} 38. Rxb4 {[%emt 0:01:53]} Qg7+ {[%emt 0:00:58]} 39. Kb1 {[%emt 0:00:16]} Qe5 {[%emt 0:02:00]} 40. Qe4 {[%emt 0:02:02]} Rxd5 {[%emt 0:01:06]} 41. Qxe5 {[%emt 0:37:01]} dxe5 {[%emt 0:30:31]} 42. Kc2 {[%emt 0:00:11]} Kg7 {[%emt 0:00:00]} 43. Rxa4 {[%emt 0:00:00]} h5 {[%emt 0:00:00]} 44. gxh5 {[%emt 0:00:00]} Kh6 {[%emt 0:00:00]} 45. Ra8 {[%emt 0:00:00]} Kxh5 {[%emt 0:00:00]} 46. a4 {[%emt 0:00:00]} e4 {[%emt 0:00:00]} 47. Re8 {[%emt 0:00:00]} Rd4 {[%emt 0:00:00]} 48. a5 {[%emt 0:00:00]} Ra4 {[%emt 0:00:00]} 49. Re5+ {[%emt 0:00:00]} Kh4 {[%emt 0:00:00]} 50. Kb3 {[%emt 0:00:00]} Ra1 {[%emt 0:00:00]} 51. Kb4 {[%emt 0:00:00]} Kxh3 {[%emt 0:00:00]} 52. Rxe4 {[%emt 0:00:00]} f3 {[%emt 0:00:00]} 53. Kb5 {[%emt 0:00:00]} 1/2-1/2

[Event "90th GER-ch 2019"]
[Site "Magdeburg"]
[Date "2019.05.30"]
[Round "6.8"]
[White "Schulz, Karsten"]
[Black "Engel, Luis"]
[Result "1/2-1/2"]
[ECO "A13"]
[WhiteElo "2227"]
[BlackElo "2512"]
[Annotator "ChessBase"]
[PlyCount "85"]
[EventDate "2019.05.26"]
[EventType "tourn"]
[EventCountry "GER"]
[SourceTitle "playchess.com"]
[Source "ChessBase"]
[SourceQuality "1"]
[TimeControl "40/5400+30:1800+30"]

1. Nf3 {[%emt 0:00:00]} d5 {[%emt 0:00:00]} 2. c4 {[%emt 0:00:00]} e6 {[%emt 0:00:00]} 3. g3 {[%emt 0:00:00]} dxc4 {[%emt 0:00:00]} 4. Qa4+ {[%emt 0:01:22]} Nd7 {[%emt 0:00:04]} 5. Bg2 {[%emt 0:00:22]} a6 {[%emt 0:00:37]} 6. Qxc4 {[%emt 0:00:06]} b5 {[%emt 0:00:05]} 7. Qc2 {[%emt 0:01:45]} Bb7 {[%emt 0:00:08]} 8. O-O {[%emt 0:00:12]} Ngf6 {[%emt 0:00:05]} 9. b3 {[%emt 0:00:14]} Bd6 {[%emt 0:00:47]} 10. Bb2 {[%emt 0:02:51]} O-O {[%emt 0:00:18]} 11. d3 {[%emt 0:00:46]} c5 {[%emt 0:00:18]} 12. Nbd2 {[%emt 0:00:23]} Rc8 {[%emt 0:00:20]} 13. Rac1 {[%emt 0:00:32]} Qb6 {[%emt 0:00:19]} 14. Qb1 {[%emt 0:00:46]} e5 {[%emt 0:05:29]} 15. e3 {[%emt 0:07:14]} Rfe8 {[%emt 0:01:26]} 16. Rfd1 {[%emt 0:01:43]} Nf8 {[%emt 0:05:04]} 17. Re1 {[%emt 0:06:35]} Ng6 {[%emt 0:05:14]} 18. Red1 {[%emt 0:07:08]} h6 {[%emt 0:04:27]} 19. Re1 {[%emt 0:10:59]} Qa7 {[%emt 0:10:19]} 20. Qc2 {[%emt 0:17:02]} Qa8 {[%emt 0:01:51]} 21. Qd1 {[%emt 0:01:34]} Bf8 {[%emt 0:05:23]} 22. Qe2 {[%emt 0:04:27]} Rcd8 {[%emt 0:01:52]} 23. Red1 {[%emt 0:04:00]} Rd7 {[%emt 0:04:57]} 24. Bh3 {[%emt 0:03:30]} Rd5 {[%emt 0:02:21]} 25. Bg2 {[%emt 0:07:04]} Red8 {[%emt 0:01:55]} 26. Ne1 {[%emt 0:00:42]} R5d7 {[%emt 0:00:31]} 27. Ndf3 {[%emt 0:01:23]} e4 {[%emt 0:03:24]} 28. dxe4 {[%emt 0:00:54]} Nxe4 {[%emt 0:00:13]} 29. Rxd7 {[%emt 0:00:22]} Rxd7 {[%emt 0:00:05]} 30. Rd1 {[%emt 0:00:46]} Qd8 {[%emt 0:05:02]} 31. Rxd7 {[%emt 0:01:21]} Qxd7 {[%emt 0:00:06]} 32. Qc2 {[%emt 0:02:23]} Qd5 {[%emt 0:06:41]} 33. Nd2 {[%emt 0:02:02]} f5 {[%emt 0:00:29]} 34. Nef3 {[%emt 0:03:59]} Bd6 {[%emt 0:07:22]} 35. Nxe4 {[%emt 0:02:25]} Qxe4 {[%emt 0:00:08]} 36. Qd1 {[%emt 0:03:43]} Qe7 {[%emt 0:02:53]} 37. h4 {[%emt 0:03:07]} Qc7 {[%emt 0:04:16]} 38. h5 {[%emt 0:02:02]} Ne7 {[%emt 0:00:14]} 39. Nh4 {[%emt 0:02:06]} Bxg2 {[%emt 0:00:18]} 40. Nxg2 {[%emt 0:00:58]} Be5 {[%emt 0:02:51]} 41. Bxe5 {[%emt 0:04:38]} Qxe5 {[%emt 0:00:21]} 42. Nf4 {[%emt 0:00:21]} Qc7 {[%emt 0:07:13]} 43. Nd5 {[%emt 0:04:36]} 1/2-1/2

[Event "90th GER-ch 2019"]
[Site "Magdeburg"]
[Date "2019.05.30"]
[Round "6.9"]
[White "Polster, Christian"]
[Black "Maetzkow, Maximilian Paul"]
[Result "0-1"]
[ECO "C11"]
[WhiteElo "2236"]
[BlackElo "2338"]
[Annotator "ChessBase"]
[PlyCount "82"]
[EventDate "2019.05.26"]
[EventType "tourn"]
[EventCountry "GER"]
[SourceTitle "playchess.com"]
[Source "ChessBase"]
[SourceQuality "1"]
[TimeControl "40/5400+30:1800+30"]

1. Nc3 {[%emt 0:00:00]} e6 {[%emt 0:00:00]} 2. e4 {[%emt 0:03:40]} d5 {[%emt 0:00:12]} 3. d4 {[%emt 0:02:10]} Nf6 {[%emt 0:00:15]} 4. exd5 {[%emt 0:00:26]} exd5 {[%emt 0:01:08]} 5. Bd3 {[%emt 0:00:16]} Bd6 {[%emt 0:07:34]} 6. Bg5 {[%emt 0:03:01]} c6 {[%emt 0:01:15]} 7. Nge2 {[%emt 0:04:52]} O-O {[%emt 0:00:44]} 8. Qd2 {[%emt 0:01:05]} Nbd7 {[%emt 0:02:19]} 9. O-O-O {[%emt 0:03:39]} b5 {[%emt 0:05:13]} 10. Ng3 {[%emt 0:04:17]} Nb6 {[%emt 0:14:16]} 11. Nh5 {[%emt 0:09:07]} Be7 {[%emt 0:03:09]} 12. Rde1 {[%emt 0:04:27]} Be6 {[%emt 0:01:17]} 13. Nf4 {[%emt 0:02:45]} Ne8 {[%emt 0:19:12]} 14. h4 {[%emt 0:12:34]} Nc7 {[%emt 0:06:04]} 15. Qd1 {[%emt 0:12:01]} g6 {[%emt 0:06:31]} 16. Bh6 {[%emt 0:06:39]} Nc4 {[%emt 0:04:01]} 17. Bxf8 {[%emt 0:19:48]} Qxf8 {[%emt 0:03:32]} 18. Bxc4 {[%emt 0:06:02]} bxc4 {[%emt 0:01:23]} 19. Na4 {[%emt 0:00:43]} Rb8 {[%emt 0:00:38]} 20. c3 {[%emt 0:00:57]} Bd6 {[%emt 0:03:03]} 21. Nxe6 {[%emt 0:01:11]} Nxe6 {[%emt 0:02:02]} 22. g3 {[%emt 0:00:13]} Qd8 {[%emt 0:01:58]} 23. b3 {[%emt 0:00:39]} cxb3 {[%emt 0:01:28]} 24. axb3 {[%emt 0:00:06]} Qa5 {[%emt 0:03:03]} 25. Kc2 {[%emt 0:01:17]} Qb5 {[%emt 0:02:34]} 26. Qb1 {[%emt 0:00:33]} c5 {[%emt 0:00:38]} 27. dxc5 {[%emt 0:00:27]} Bxc5 {[%emt 0:00:24]} 28. Rhf1 {[%emt 0:00:31]} d4 {[%emt 0:01:30]} 29. c4 {[%emt 0:00:32]} d3+ {[%emt 0:02:29]} 30. Kd2 {[%emt 0:00:30]} Qa5+ {[%emt 0:01:31]} 31. Nc3 {[%emt 0:00:20]} Nd4 {[%emt 0:00:29]} 32. Kxd3 {[%emt 0:00:37]} Rxb3 {[%emt 0:01:05]} 33. Re8+ {[%emt 0:00:33]} Kg7 {[%emt 0:00:06]} 34. Qa1 {[%emt 0:00:29]} Ra3 {[%emt 0:01:48]} 35. Qb2 {[%emt 0:00:31]} Bb4 {[%emt 0:00:22]} 36. Rc1 {[%emt 0:00:29]} Ne6 {[%emt 0:00:40]} 37. Ke2 Bxc3 {[%emt 0:00:12]} 38. Qb8 {[%emt 0:00:57]} Ra2+ {[%emt 0:00:47]} 39. Kf1 {[%emt 0:00:26]} Qc5 {[%emt 0:00:28]} 40. Rg8+ {[%emt 0:00:37]} Kh6 {[%emt 0:00:09]} 41. Qf8+ {[%emt 0:04:16]} Nxf8 {[%emt 0:00:05]} 0-1

[Event "90th GER-ch 2019"]
[Site "Magdeburg"]
[Date "2019.05.30"]
[Round "6.10"]
[White "Wachinger, Nikolas"]
[Black "Lubbe, Nikolas"]
[Result "0-1"]
[ECO "B31"]
[WhiteElo "2311"]
[BlackElo "2431"]
[Annotator "ChessBase"]
[PlyCount "110"]
[EventDate "2019.05.26"]
[EventType "tourn"]
[EventCountry "GER"]
[SourceTitle "playchess.com"]
[Source "ChessBase"]
[SourceQuality "1"]
[TimeControl "40/5400+30:1800+30"]

1. e4 {[%emt 0:00:00]} c5 {[%emt 0:00:00]} 2. Nf3 {[%emt 0:00:00]} Nc6 {[%emt 0:00:00]} 3. Bb5 {[%emt 0:00:06]} g6 {[%emt 0:00:04]} 4. Bxc6 {[%emt 0:00:17]} dxc6 {[%emt 0:00:16]} 5. d3 {[%emt 0:00:12]} Bg7 {[%emt 0:00:08]} 6. h3 {[%emt 0:00:17]} Nf6 {[%emt 0:00:22]} 7. Nc3 {[%emt 0:00:16]} Nd7 {[%emt 0:00:43]} 8. Be3 {[%emt 0:06:55]} e5 {[%emt 0:00:19]} 9. O-O {[%emt 0:00:32]} b6 {[%emt 0:01:48]} 10. Qd2 {[%emt 0:03:34]} h6 {[%emt 0:00:20]} 11. a3 Nf8 {[%emt 0:05:23]} 12. b4 {[%emt 0:07:30]} cxb4 {[%emt 0:03:56]} 13. axb4 {[%emt 0:00:44]} Ne6 {[%emt 0:00:13]} 14. Ne2 f5 {[%emt 0:15:34]} 15. Qc3 {[%emt 0:28:07]} f4 {[%emt 0:10:02]} 16. Qxc6+ {[%emt 0:17:58]} Bd7 {[%emt 0:00:33]} 17. Qd5 {[%emt 0:00:06]} fxe3 {[%emt 0:04:27]} 18. Nxe5 {[%emt 0:00:08]} Bxe5 {[%emt 0:18:33]} 19. Qxe5 {[%emt 0:00:21]} exf2+ {[%emt 0:12:06]} 20. Rxf2 {[%emt 0:00:13]} Rf8 {[%emt 0:00:15]} 21. Raf1 {[%emt 0:19:25]} Rxf2 {[%emt 0:00:13]} 22. Rxf2 {[%emt 0:00:03]} Qe7 {[%emt 0:00:30]} 23. Nc3 {[%emt 0:02:48]} O-O-O {[%emt 0:08:35]} 24. Nd5 {[%emt 0:00:08]} Qe8 {[%emt 0:02:14]} 25. Qd6 {[%emt 0:06:36]} Kb7 {[%emt 0:01:33]} 26. Nf6 {[%emt 0:00:41]} Qf7 {[%emt 0:00:20]} 27. Nd5 {[%emt 0:00:22]} Qg7 {[%emt 0:04:14]} 28. Rf6 {[%emt 0:00:18]} Bc8 {[%emt 0:00:29]} 29. Qe5 {[%emt 0:00:33]} Re8 {[%emt 0:00:18]} 30. b5 {[%emt 0:02:05]} Qd7 {[%emt 0:00:23]} 31. c4 {[%emt 0:00:41]} h5 {[%emt 0:02:07]} 32. h4 {[%emt 0:02:15]} Qg7 {[%emt 0:05:43]} 33. Qg3 {[%emt 0:00:52]} Rf8 {[%emt 0:01:59]} 34. e5 {[%emt 0:01:30]} g5 {[%emt 0:02:08]} 35. hxg5 {[%emt 0:00:27]} Rxf6 {[%emt 0:00:01]} 36. exf6 {[%emt 0:00:20]} Qxg5 {[%emt 0:00:12]} 37. Qd6 {[%emt 0:01:01]} Qc1+ {[%emt 0:01:26]} 38. Kh2 {[%emt 0:00:03]} Qg5 {[%emt 0:00:25]} 39. Kg1 {[%emt 0:00:15]} Qc1+ {[%emt 0:00:39]} 40. Kh2 {[%emt 0:00:53]} Qg5 {[%emt 0:00:18]} 41. Qg3 {[%emt 0:05:27]} Qf5 {[%emt 0:04:17]} 42. Kg1 {[%emt 0:05:07]} h4 {[%emt 0:09:20]} 43. Qd6 {[%emt 0:01:48]} Qxd3 {[%emt 0:03:47]} 44. f7 {[%emt 0:03:53]} Qd4+ {[%emt 0:03:55]} 45. Kh2 {[%emt 0:00:36]} Qc5 {[%emt 0:00:31]} 46. Qe5 {[%emt 0:03:56]} Qxc4 {[%emt 0:02:08]} 47. Nf4 {[%emt 0:01:41]} Nf8 {[%emt 0:02:57]} 48. Qe7+ {[%emt 0:00:17]} Bd7 {[%emt 0:00:26]} 49. Qxf8 {[%emt 0:01:00]} Qxf4+ {[%emt 0:00:01]} 50. Kh1 {[%emt 0:01:19]} Qc1+ {[%emt 0:00:06]} 51. Kh2 {[%emt 0:00:15]} Qc7+ {[%emt 0:00:24]} 52. Kg1 {[%emt 0:06:20]} Be6 {[%emt 0:00:07]} 53. Qe8 {[%emt 0:00:13]} Bxf7 {[%emt 0:04:37]} 54. Qe4+ {[%emt 0:00:13]} Kb8 {[%emt 0:00:06]} 55. Qxh4 {[%emt 0:00:25]} Bc4 {[%emt 0:01:05]} 0-1

[Event "90th GER-ch 2019"]
[Site "Magdeburg"]
[Date "2019.05.30"]
[Round "6.11"]
[White "Schulz, Lukas"]
[Black "Kardoeus, David"]
[Result "1-0"]
[ECO "C37"]
[WhiteElo "2302"]
[BlackElo "2202"]
[Annotator "ChessBase"]
[PlyCount "83"]
[EventDate "2019.05.26"]
[EventType "tourn"]
[EventCountry "GER"]
[SourceTitle "playchess.com"]
[Source "ChessBase"]
[SourceQuality "1"]
[TimeControl "40/5400+30:1800+30"]

1. e4 {[%emt 0:00:00]} e5 {[%emt 0:00:00]} 2. f4 {[%emt 0:00:00]} exf4 {[%emt 0:00:01]} 3. Nf3 {[%emt 0:00:00]} g5 {[%emt 0:02:30]} 4. Nc3 {[%emt 0:00:32]} Bg7 {[%emt 0:02:47]} 5. d4 {[%emt 0:00:54]} d6 {[%emt 0:07:51]} 6. g3 {[%emt 0:00:26]} g4 {[%emt 0:16:48]} 7. Nh4 {[%emt 0:00:07]} f3 {[%emt 0:00:13]} 8. Be3 {[%emt 0:01:14]} c6 {[%emt 0:08:02]} 9. Qd2 {[%emt 0:01:07]} Na6 {[%emt 0:08:42]} 10. O-O-O {[%emt 0:01:46]} Nc7 {[%emt 0:01:00]} 11. h3 {[%emt 0:07:15]} h5 {[%emt 0:00:54]} 12. Re1 {[%emt 0:01:07]} Ne7 {[%emt 0:01:42]} 13. Bd3 {[%emt 0:04:21]} b5 {[%emt 0:09:08]} 14. Nf5 {[%emt 0:02:03]} Bxf5 {[%emt 0:16:03]} 15. exf5 {[%emt 0:00:05]} d5 {[%emt 0:06:15]} 16. hxg4 {[%emt 0:06:19]} hxg4 {[%emt 0:00:01]} 17. Rxh8+ {[%emt 0:00:06]} Bxh8 {[%emt 0:00:05]} 18. Bg5 {[%emt 0:00:06]} f6 {[%emt 0:01:06]} 19. Bf4 {[%emt 0:00:07]} Kf8 {[%emt 0:02:59]} 20. Nd1 {[%emt 0:01:30]} Kf7 {[%emt 0:02:14]} 21. Qh2 {[%emt 0:00:54]} Bg7 {[%emt 0:00:49]} 22. Nf2 {[%emt 0:01:48]} Qd7 {[%emt 0:00:26]} 23. Qh5+ {[%emt 0:00:18]} Kf8 {[%emt 0:00:21]} 24. Nxg4 {[%emt 0:10:51]} Ng8 {[%emt 0:00:44]} 25. Bd2 {[%emt 0:05:27]} a5 {[%emt 0:00:40]} 26. Nf2 {[%emt 0:01:42]} Re8 {[%emt 0:01:07]} 27. Bxa5 {[%emt 0:06:42]} Bh6+ {[%emt 0:04:52]} 28. Kd1 {[%emt 0:00:38]} Qd6 {[%emt 0:01:27]} 29. Qxf3 {[%emt 0:01:55]} b4 {[%emt 0:00:36]} 30. Bb6 {[%emt 0:01:16]} Rxe1+ {[%emt 0:00:47]} 31. Kxe1 {[%emt 0:00:04]} Kg7 {[%emt 0:04:13]} 32. Bc5 {[%emt 0:00:50]} Qd8 {[%emt 0:00:02]} 33. Qg4+ {[%emt 0:02:31]} Bg5 {[%emt 0:00:09]} 34. Nh3 {[%emt 0:01:15]} Qe8+ {[%emt 0:00:22]} 35. Qe2 {[%emt 0:00:11]} Qa8 {[%emt 0:00:19]} 36. Nxg5 {[%emt 0:00:43]} fxg5 {[%emt 0:00:22]} 37. f6+ {[%emt 0:01:26]} Nxf6 {[%emt 0:00:08]} 38. Qe7+ {[%emt 0:00:04]} Kh6 {[%emt 0:00:21]} 39. Qxf6+ {[%emt 0:00:05]} Kh5 {[%emt 0:00:05]} 40. Kf2 {[%emt 0:02:36]} Qxa2 {[%emt 0:00:34]} 41. Bg6+ {[%emt 0:30:14]} Kh6 {[%emt 0:30:27]} 42. Bf8# {[%emt 0:00:04]} 1-0

[Event "90th GER-ch 2019"]
[Site "Magdeburg"]
[Date "2019.05.30"]
[Round "6.12"]
[White "Moeller, Dustin"]
[Black "Trifan, Andrei Ioan"]
[Result "1/2-1/2"]
[ECO "E97"]
[WhiteElo "2156"]
[BlackElo "2268"]
[Annotator "ChessBase"]
[PlyCount "120"]
[EventDate "2019.05.26"]
[EventType "tourn"]
[EventCountry "GER"]
[SourceTitle "playchess.com"]
[Source "ChessBase"]
[SourceQuality "1"]
[TimeControl "40/5400+30:1800+30"]

1. d4 {[%emt 0:00:00]} Nf6 {[%emt 0:00:13]} 2. c4 {[%emt 0:00:00]} g6 {[%emt 0:00:27]} 3. Nc3 {[%emt 0:00:00]} Bg7 {[%emt 0:00:53]} 4. e4 {[%emt 0:00:00]} d6 {[%emt 0:00:17]} 5. Be2 {[%emt 0:00:00]} O-O {[%emt 0:00:55]} 6. Nf3 {[%emt 0:00:02]} e5 {[%emt 0:00:34]} 7. O-O {[%emt 0:00:08]} Nc6 {[%emt 0:00:41]} 8. d5 {[%emt 0:00:06]} Ne7 {[%emt 0:00:16]} 9. Nd2 {[%emt 0:00:06]} Ne8 {[%emt 0:02:46]} 10. b4 {[%emt 0:00:06]} f5 {[%emt 0:00:52]} 11. c5 {[%emt 0:00:07]} Nf6 {[%emt 0:01:37]} 12. f3 {[%emt 0:00:06]} f4 {[%emt 0:03:38]} 13. Nc4 {[%emt 0:00:07]} g5 {[%emt 0:05:33]} 14. a4 {[%emt 0:00:06]} Ng6 {[%emt 0:01:08]} 15. Ba3 {[%emt 0:00:06]} Rf7 {[%emt 0:01:06]} 16. b5 {[%emt 0:00:08]} dxc5 {[%emt 0:04:19]} 17. Bxc5 {[%emt 0:00:04]} h5 {[%emt 0:00:07]} 18. a5 {[%emt 0:04:56]} g4 {[%emt 0:05:31]} 19. b6 {[%emt 0:00:26]} g3 {[%emt 0:02:06]} 20. Kh1 {[%emt 0:00:05]} Bf8 {[%emt 0:05:51]} 21. d6 {[%emt 0:01:29]} cxb6 {[%emt 0:11:23]} 22. axb6 {[%emt 0:00:36]} Ne8 {[%emt 0:01:06]} 23. bxa7 {[%emt 0:09:47]} Qh4 {[%emt 0:11:00]} 24. Bg1 {[%emt 0:00:34]} Bh3 {[%emt 0:00:07]} 25. gxh3 {[%emt 0:00:20]} Rg7 {[%emt 0:10:39]} 26. Re1 {[%emt 0:09:03]} g2+ {[%emt 0:01:39]} 27. Kxg2 {[%emt 0:00:15]} Qg5+ {[%emt 0:00:11]} 28. Kf2 {[%emt 0:02:16]} Qh4+ {[%emt 0:00:35]} 29. Kg2 {[%emt 0:00:16]} Qg5+ {[%emt 0:10:56]} 30. Kf2 {[%emt 0:00:22]} Ne7 {[%emt 0:04:10]} 31. Bf1 {[%emt 0:00:24]} Qxg1+ {[%emt 0:00:26]} 32. Ke2 {[%emt 0:00:05]} Nc6 {[%emt 0:01:28]} 33. Nb5 {[%emt 0:07:19]} Nf6 {[%emt 0:01:22]} 34. Qb3 {[%emt 0:12:11]} Kh8 {[%emt 0:00:10]} 35. Kd1 {[%emt 0:01:40]} Nd4 {[%emt 0:01:47]} 36. Nxd4 {[%emt 0:01:45]} Qxd4+ {[%emt 0:00:04]} 37. Kc2 {[%emt 0:19:06]} Rxa7 {[%emt 0:00:08]} 38. Rad1 {[%emt 0:07:21]} Qc5 {[%emt 0:04:23]} 39. Qb6 {[%emt 0:00:11]} Qxb6 {[%emt 0:02:55]} 40. Nxb6 {[%emt 0:01:12]} Nd7 {[%emt 0:00:08]} 41. Nxd7 {[%emt 0:46:36]} Rxd7 {[%emt 0:30:20]} 42. Bb5 {[%emt 0:00:05]} Rxd6 {[%emt 0:02:02]} 43. Rxd6 {[%emt 0:00:33]} Bxd6 {[%emt 0:00:03]} 44. Rd1 {[%emt 0:00:34]} Bc5 {[%emt 0:05:27]} 45. Rd8+ {[%emt 0:00:58]} Kg7 {[%emt 0:00:37]} 46. Bc4 {[%emt 0:02:30]} b6 {[%emt 0:00:00]} 47. Rg8+ {[%emt 0:00:00]} Kf6 {[%emt 0:00:00]} 48. h4 {[%emt 0:00:00]} Ra3 {[%emt 0:00:00]} 49. Bb3 {[%emt 0:00:00]} Ra1 {[%emt 0:00:00]} 50. Rg5 {[%emt 0:00:00]} Bd4 {[%emt 0:00:00]} 51. Rf5+ {[%emt 0:00:00]} Kg7 {[%emt 0:00:00]} 52. Rg5+ {[%emt 0:00:00]} Kf6 {[%emt 0:00:00]} 53. Rf5+ {[%emt 0:00:00]} Ke7 {[%emt 0:00:00]} 54. Bf7 {[%emt 0:00:00]} Rh1 {[%emt 0:00:00]} 55. Bxh5 {[%emt 0:00:00]} Rxh2+ {[%emt 0:00:00]} 56. Kb3 {[%emt 0:00:00]} Rxh4 {[%emt 0:00:00]} 57. Kc4 {[%emt 0:00:00]} Kd6 {[%emt 0:00:00]} 58. Rf6+ {[%emt 0:00:00]} Kc7 {[%emt 0:00:00]} 59. Rf7+ {[%emt 0:01:12]} Kc6 {[%emt 0:00:00]} 60. Rh7 {[%emt 0:00:48]} Kd6 {[%emt 0:00:00]} 1/2-1/2

[Event "90th GER-ch 2019"]
[Site "Magdeburg"]
[Date "2019.05.30"]
[Round "6.13"]
[White "Heimrath, Reiner"]
[Black "Krastev, Alexander"]
[Result "0-1"]
[ECO "C55"]
[WhiteElo "2239"]
[BlackElo "2344"]
[Annotator "ChessBase"]
[PlyCount "124"]
[EventDate "2019.05.26"]
[EventType "tourn"]
[EventCountry "GER"]
[SourceTitle "playchess.com"]
[Source "ChessBase"]
[SourceQuality "1"]
[TimeControl "40/5400+30:1800+30"]

1. e4 {[%emt 0:00:00]} e5 {[%emt 0:00:00]} 2. Nf3 {[%emt 0:00:00]} Nc6 {[%emt 0:00:00]} 3. Bc4 {[%emt 0:00:00]} Nf6 {[%emt 0:00:01]} 4. d3 {[%emt 0:00:05]} Be7 {[%emt 0:00:34]} 5. Bb3 {[%emt 0:00:37]} O-O {[%emt 0:00:50]} 6. c3 {[%emt 0:00:11]} d5 {[%emt 0:18:35]} 7. Qe2 {[%emt 0:03:54]} Be6 {[%emt 0:01:34]} 8. Nbd2 {[%emt 0:00:18]} h6 {[%emt 0:07:16]} 9. Nf1 {[%emt 0:10:33]} a5 {[%emt 0:02:16]} 10. Ba4 {[%emt 0:02:28]} Bd6 {[%emt 0:02:26]} 11. h3 {[%emt 0:09:05]} Rb8 {[%emt 0:10:29]} 12. g4 {[%emt 0:05:00]} b5 {[%emt 0:01:20]} 13. Bc2 {[%emt 0:00:10]} Bc5 {[%emt 0:23:50]} 14. Ne3 {[%emt 0:21:13]} d4 {[%emt 0:13:50]} 15. Nf5 {[%emt 0:12:13]} Re8 {[%emt 0:12:25]} 16. Rg1 {[%emt 0:08:51]} Bxf5 {[%emt 0:01:23]} 17. gxf5 {[%emt 0:00:17]} Kh8 {[%emt 0:00:14]} 18. Bb3 {[%emt 0:01:17]} Qd7 {[%emt 0:00:53]} 19. c4 {[%emt 0:06:15]} a4 {[%emt 0:00:52]} 20. cxb5 {[%emt 0:01:26]} axb3 {[%emt 0:00:03]} 21. bxc6 {[%emt 0:00:07]} Qxc6 {[%emt 0:00:02]} 22. a3 {[%emt 0:00:32]} Qa6 {[%emt 0:01:18]} 23. Kf1 {[%emt 0:00:55]} Bb4 {[%emt 0:00:38]} 24. Kg2 {[%emt 0:00:37]} Rb6 {[%emt 0:00:38]} 25. Kh1 {[%emt 0:01:02]} Rc6 {[%emt 0:00:28]} 26. Bxh6 {[%emt 0:04:16]} Bf8 {[%emt 0:00:30]} 27. Bd2 {[%emt 0:03:12]} Rc2 {[%emt 0:00:20]} 28. Rab1 {[%emt 0:05:18]} Kg8 {[%emt 0:00:09]} 29. Ne1 {[%emt 0:00:29]} Nxe4 {[%emt 0:01:05]} 30. Nxc2 {[%emt 0:00:52]} bxc2 {[%emt 0:00:03]} 31. Rbc1 {[%emt 0:00:28]} Qxd3 {[%emt 0:00:05]} 32. Qxd3 {[%emt 0:00:29]} Nxf2+ {[%emt 0:00:03]} 33. Kg2 {[%emt 0:00:16]} Nxd3 {[%emt 0:00:04]} 34. Rxc2 {[%emt 0:00:12]} c5 {[%emt 0:00:31]} 35. f6 {[%emt 0:01:10]} g6 {[%emt 0:00:40]} 36. Bg5 {[%emt 0:01:34]} e4 {[%emt 0:00:43]} 37. Rd1 {[%emt 0:00:05]} Rb8 {[%emt 0:00:35]} 38. Re2 {[%emt 0:01:13]} c4 {[%emt 0:01:45]} 39. b4 {[%emt 0:01:11]} cxb3 {[%emt 0:00:31]} 40. Rxe4 {[%emt 0:00:07]} Nc5 {[%emt 0:00:29]} 41. Rexd4 {[%emt 0:30:31]} Ne6 {[%emt 0:30:16]} 42. Rd5 {[%emt 0:00:58]} Bxa3 {[%emt 0:00:00]} 43. Be3 {[%emt 0:00:00]} Bb2 {[%emt 0:00:00]} 44. Rd6 {[%emt 0:00:00]} Bxf6 {[%emt 0:00:00]} 45. Rb6 {[%emt 0:00:00]} Rxb6 {[%emt 0:00:00]} 46. Bxb6 {[%emt 0:00:00]} b2 {[%emt 0:00:00]} 47. Be3 {[%emt 0:00:00]} Kg7 {[%emt 0:00:00]} 48. Rb1 {[%emt 0:00:00]} Bc3 {[%emt 0:00:00]} 49. Kf3 {[%emt 0:00:00]} f5 {[%emt 0:00:00]} 50. Ke2 {[%emt 0:00:00]} Kf6 {[%emt 0:00:00]} 51. Kd3 {[%emt 0:00:00]} Be5 {[%emt 0:00:00]} 52. Kc2 {[%emt 0:00:59]} f4 {[%emt 0:00:00]} 53. Bd2 {[%emt 0:00:08]} Kf5 {[%emt 0:00:00]} 54. Bc3 {[%emt 0:00:06]} Bxc3 {[%emt 0:00:00]} 55. Kxc3 {[%emt 0:00:01]} Ng5 {[%emt 0:00:00]} 56. h4 {[%emt 0:00:58]} Nf3 {[%emt 0:00:00]} 57. h5 {[%emt 0:00:47]} gxh5 {[%emt 0:00:00]} 58. Rxb2 {[%emt 0:00:10]} h4 {[%emt 0:00:00]} 59. Rb8 {[%emt 0:02:58]} h3 {[%emt 0:00:00]} 60. Kd3 {[%emt 0:00:24]} h2 {[%emt 0:00:00]} 61. Rh8 {[%emt 0:01:41]} Kg4 {[%emt 0:00:00]} 62. Ke2 {[%emt 0:02:47]} Nh4 {[%emt 0:00:00]} 0-1